[Event "European Blitz-ch 2018"]
[Site "Skopje"]
[Date "2018.12.06"]
[Round "9"]
[White "Markoja, Boris"]
[Black "Bizopoulos, Alexandros"]
[Result "1-0"]
[ECO "A52"]
[WhiteElo "2430"]
[BlackElo "2060"]
[Annotator "RC"]
[PlyCount "67"]
[EventDate "2018.12.06"]
[EventType "swiss"]
[EventCountry "MKD"]
[TimeControl "180+2"]

1. d4 {[%emt 0:00:01]} Nf6 {[%emt 0:00:01]} 2. c4 {[%emt 0:00:01]} e5 {[%emt 0:00:01]} 3. dxe5 {[%emt 0:00:03]} Ng4 {[%emt 0:00:01]} 4. Nf3 {[%emt 0:00:02]} Nc6 {[%emt 0:00:02]} 5. Nc3 {[%emt 0:00:02]} Ngxe5 {[%emt 0:00:11]} 6. e3 {[%emt 0:00:01]} Bb4 {[%emt 0:00:05]} 7. Bd2 {[%emt 0:00:04]} O-O {[%emt 0:00:05]} 8. Be2 {[%emt 0:00:01]} d6 {[%emt 0:00:04]} 9. O-O {[%emt 0:00:02]} Re8 {[%emt 0:00:04]} 10. a3 {[%emt 0:00:06]} Bxc3 11. Bxc3 {[%emt 0:00:01]} Nxf3+ {[%emt 0:00:16]} 12. Bxf3 {[%emt 0:00:02]} Ne5 {[%emt 0:00:03]} 13. Be2 {[%emt 0:00:01]} Qh4 {[%emt 0:00:24]} 14. Qd4 {[%emt 0:00:22]} Qxd4 {[%emt 0:00:04]} 15. Bxd4 {[%emt 0:00:10]} Bg4 {[%emt 0:00:30]} 16. f3 {[%emt 0:00:08]} Be6 {[%emt 0:00:05]} 17. Rac1 {[%emt 0:00:03]} Nc6 {[%emt 0:00:07]} 18. Bc3 {[%emt 0:00:05]} Rad8 {[%emt 0:00:03]} 19. Kf2 {[%emt 0:00:04]} d5 {[%emt 0:00:14]} 20. cxd5 {[%emt 0:00:03]} Bxd5 {[%emt 0:00:02]} 21. b4 {[%emt 0:00:07]} Nb8 {[%emt 0:00:48]} 22. b5 {[%emt 0:00:11]} c6 {[%emt 0:00:03]} 23. a4 {[%emt 0:00:01]} Nd7 {[%emt 0:00:06]} 24. Bd4 {[%emt 0:00:03]} cxb5 {[%emt 0:00:13]} 25. axb5 {[%emt 0:00:01]} b6 {[%emt 0:00:07]} 26. Rc7 {[%emt 0:00:02]} Nc5 {[%emt 0:00:01]} 27. Rxa7 {[%emt 0:00:11]} Ra8 {[%emt 0:00:05]} 28. Rfa1 {[%emt 0:00:02]} Rxa7 {[%emt 0:00:01]} 29. Rxa7 {[%emt 0:01:58]} Nb3 {[%emt 0:00:05]} 30. Bxb6 {[%emt 0:00:00]} Rb8 {[%emt 0:00:01]} 31. Bc7 {[%emt 0:00:00]} Rc8 {[%emt 0:00:02]} 32. b6 {[%emt 0:00:00]} Nc5 {[%emt 0:00:01]} 33. e4 {[%emt 0:00:00]} Bb7 {[%emt 0:00:02]} 34. Bd6 {[%emt 0:00:00]} 1-0

[Event "European Blitz-ch 2018"]
[Site "Skopje"]
[Date "2018.12.06"]
[Round "9"]
[White "Papasimakopoulos, Alexandros"]
[Black "Saraci, Nderim"]
[Result "1-0"]
[ECO "E85"]
[WhiteElo "2191"]
[BlackElo "2382"]
[PlyCount "98"]
[EventDate "2018.12.06"]
[EventType "swiss"]
[EventCountry "MKD"]
[TimeControl "180+2"]

1. d4 {[%emt 0:00:00]} Nf6 {[%emt 0:00:00]} 2. c4 {[%emt 0:00:01]} g6 {[%emt 0:00:01]} 3. f3 {[%emt 0:00:01]} Bg7 {[%emt 0:00:19]} 4. e4 {[%emt 0:00:01]} d6 {[%emt 0:00:02]} 5. Nc3 {[%emt 0:00:01]} O-O {[%emt 0:00:07]} 6. Be3 {[%emt 0:00:01]} e5 {[%emt 0:00:18]} 7. Nge2 {[%emt 0:00:02]} Re8 {[%emt 0:00:28]} 8. d5 {[%emt 0:00:01]} c6 {[%emt 0:00:12]} 9. Qd2 {[%emt 0:00:01]} cxd5 {[%emt 0:00:04]} 10. cxd5 {[%emt 0:00:01]} a6 {[%emt 0:00:06]} 11. g4 {[%emt 0:00:02]} b5 {[%emt 0:00:02]} 12. Ng3 {[%emt 0:00:02]} Nfd7 {[%emt 0:00:53]} 13. h4 {[%emt 0:00:01]} b4 {[%emt 0:00:01]} 14. Nd1 {[%emt 0:00:13]} Nc5 {[%emt 0:00:10]} 15. Qxb4 {[%emt 0:00:21]} Nbd7 {[%emt 0:00:01]} 16. Qd2 {[%emt 0:00:08]} a5 {[%emt 0:00:02]} 17. Nc3 {[%emt 0:00:06]} Ba6 {[%emt 0:00:06]} 18. h5 {[%emt 0:00:46]} Bxf1 {[%emt 0:00:11]} 19. Nxf1 {[%emt 0:00:10]} a4 {[%emt 0:00:10]} 20. hxg6 {[%emt 0:00:16]} fxg6 {[%emt 0:00:02]} 21. Qh2 {[%emt 0:00:01]} Nf8 {[%emt 0:00:08]} 22. Bxc5 {[%emt 0:00:01]} dxc5 {[%emt 0:00:01]} 23. Nd2 {[%emt 0:00:14]} Qb6 {[%emt 0:00:04]} 24. O-O-O {[%emt 0:00:16]} Reb8 {[%emt 0:00:10]} 25. Ndb1 {[%emt 0:00:02]} c4 {[%emt 0:00:06]} 26. Rd2 {[%emt 0:00:17]} Qc5 {[%emt 0:00:03]} 27. g5 {[%emt 0:00:01]} a3 {[%emt 0:00:02]} 28. bxa3 {[%emt 0:00:10]} Rxa3 {[%emt 0:00:02]} 29. Rc2 {[%emt 0:00:13]} Raa8 {[%emt 0:00:03]} 30. Qf2 {[%emt 0:00:01]} Qa5 {[%emt 0:00:01]} 31. Rb2 {[%emt 0:00:10]} Nd7 {[%emt 0:00:02]} 32. Qh2 {[%emt 0:00:08]} Nc5 {[%emt 0:00:02]} 33. Rxb8+ {[%emt 0:00:05]} Rxb8 {[%emt 0:00:01]} 34. Qxh7+ {[%emt 0:00:05]} Kf7 {[%emt 0:00:01]} 35. Qh3 {[%emt 0:00:01]} Qb4 {[%emt 0:00:05]} 36. Rh2 {[%emt 0:00:03]} Rh8 {[%emt 0:00:02]} 37. Qg2 {[%emt 0:00:03]} Nd3+ {[%emt 0:00:01]} 38. Kd1 {[%emt 0:00:02]} Nf4 {[%emt 0:00:03]} 39. Qb2 {[%emt 0:00:03]} Qxb2 {[%emt 0:00:02]} 40. Rxb2 {[%emt 0:00:01]} Rh1+ {[%emt 0:00:01]} 41. Kd2 {[%emt 0:00:06]} Rh2+ {[%emt 0:00:01]} 42. Ne2 {[%emt 0:00:03]} Rxe2+ {[%emt 0:00:02]} 43. Kc3 {[%emt 0:00:00]} Re3+ {[%emt 0:00:02]} 44. Kxc4 {[%emt 0:00:02]} Rxf3 {[%emt 0:00:01]} 45. Rb7+ {[%emt 0:00:00]} Kg8 {[%emt 0:00:02]} 46. Nc3 {[%emt 0:00:03]} Rf1 {[%emt 0:00:02]} 47. a4 {[%emt 0:00:02]} Ra1 {[%emt 0:00:03]} 48. d6 {[%emt 0:00:01]} Ne6 {[%emt 0:00:03]} 49. Re7 {[%emt 0:00:02]} Nxg5 {[%emt 0:00:00]} 1-0